Cogmind - Beta 15 @@@ ROGUE MODE // 2025.07.13 @ 16:14:51 Player: hon3650 Result: Destroyed by G-34 Mercenary with Small Laser Performance ------------- Evolutions (1) 500 Regions Visited (3) 600 Robots Destroyed (43) 215 Value Destroyed (1174) 1174 Prototype IDs (0) 0 Alien Tech Used (0) 0 Bonus (0) 0 TOTAL SCORE: 2489 Bonus ------- None Cogmind --------- Core Integrity 0/400 Matter 268/300 Energy 100/100 System Corruption 0% Temperature Cool (6) Movement Flying (40) Location -9/Storage Parts ------- > --- POWER (2) -------- (None) > --- PROPULSION (2) --- Flight Unit > --- UTILITY (2) ------ (None) > --- WEAPON (3) ------- Grenade Launcher > --- INVENTORY (5) ---- Improved Heat Sink Visual Processing Unit Targeting Computer System Shield Peak State ------------ > --- POWER ------------ Light Deuterium Engine Light Deuterium Engine > --- PROPULSION ------- Aluminum Leg Aluminum Leg > --- UTILITY ---------- Small Storage Unit Shield Generator > --- WEAPON ----------- Medium Laser Autogun Autogun > --- INVENTORY -------- Light Deuterium Engine Improved Heat Sink Visual Processing Unit Hardened Light Armor Plating System Shield Grenade Launcher [Rating: 17] Favorites ----------- Power Light Deuterium Engine Engine Light Deuterium Engine Propulsion Aluminum Leg Treads Light Treads Leg Aluminum Leg Flight Unit Flight Unit Utility Small Storage Unit Device Sensor Array Storage Small Storage Unit Protection Hardened Light Armor Plating Weapon Light Assault Rifle Energy Gun Medium Laser Ballistic Gun Light Assault Rifle Launcher Grenade Launcher Build | -11 -10 -9 -9 ------- Run | Yrd Mat Mat Sto Slots Evolved 2 | . . 2 . Power 1 | . . 1 . Propulsion . | . . . . Utility . | . . . . Weapon 1 | . . 1 . Parts Attached 37 | 6 5 12 14 Power 9 | 1 1 5 2 Engine 9 | 1 1 5 2 Core . | . . . . Reactor . | . . . . Propulsion 10 | 2 . 2 6 Treads 4 | 2 . . 2 Leg 3 | . . 2 1 Wheel . | . . . . Hover . | . . . . Flight 3 | . . . 3 Utility 5 | 1 2 . 2 Device 3 | . 2 . 1 Storage 1 | 1 . . . Processor . | . . . . Hackware . | . . . . Protection 1 | . . . 1 Artifact . | . . . . Weapon 13 | 2 2 5 4 Energy Gun 4 | 1 . 1 2 Energy Cannon . | . . . . Ballistic Gun 7 | 1 2 3 1 Ballistic Cannon . | . . . . Launcher 2 | . . 1 1 Special Weapon . | . . . . Impact Weapon . | . . . . Slashing Weapon . | . . . . Piercing Weapon . | . . . . Special Melee Weapon . | . . . . Unidentified Prototypes . | . . . . Parts Lost 21 | . . 2 19 Power 4 | . . . 4 Propulsion 6 | . . 1 5 Utility 4 | . . . 4 Weapon 7 | . . 1 6 Highest Loss Streak 6 | . . 2 6 To Critical Strikes 1 | . . . 1 Average Backups 6 | 4 5 7 6 Power . | . 1 . . Propulsion . | 2 2 . . Utility 2 | . . 2 4 Weapon 2 | . 1 3 1 Tool/Special . | . . . . Unused Backups 11 | 2 1 5 3 Power . | . . . . Propulsion 3 | 2 1 . . Utility 7 | . . 4 3 Weapon . | . . . . Tool/Special 1 | . . 1 . Average Slot Usage (%) 90 | . 92 94 84 Engine 19 | . 14 21 18 Treads 8 | . 28 3 8 Leg 9 | . . 15 5 Flight 1 | . . . 3 Device 8 | . 6 11 6 Storage 11 | . 14 11 11 Protection 1 | . . . 4 Energy Gun 6 | . 7 . 13 Ballistic Gun 19 | . 20 24 13 Launcher 3 | . . 6 . Peak Build Rating 17 | 6 9 15 17 Average Rating 11 | 4 6 11 13 On Entrance 6 | . 6 7 14 Naked Turns . | . . . . Heaviest Build 25 | 11 14 25 25 Greatest Support 40 | 40 40 40 40 Greatest Overweight (x) 6 | 2 . 2 6 Average Overweight (x) . | . . . 1 Largest Inventory Capacity 8 | 8 8 8 8 Average Capacity 7 | 7 8 8 7 Most Carried 8 | 8 8 8 8 Average Carried 6 | 4 5 7 6 Final Capacity 8 | 8 8 8 5 Final Carried 8 | 4 6 8 4 Class Distribution -------------------- 48% | Skirmisher 31% | Mutant 11% | Tank 7% | Scavenger-Mutant Dominant Class ---------------- Mutant | -10/Materials Skirmisher | -9/Materials Tank | -9/Storage Resources | -11 -10 -9 -9 ----------- Run | Yrd Mat Mat Sto Matter Collected 1007 | 174 162 291 380 Remotely . | . . . . Salvage Created 1417 | . 162 470 785 Parts 93 | . 8 33 52 Haulers Intercepted . | . . . . Recyclers Shooed . | . . . . Parts Field Recycled . | . . . . Retrieved Matter . | . . . . Parts Self-Destructed . | . . . . Prevented . | . . . . Kills | -11 -10 -9 -9 ------- Run | Yrd Mat Mat Sto Combat Hostiles Destroyed 38 | . 4 14 20 Guns 34 | . 4 11 19 AOE 4 | . . 3 1 Classes Destroyed 7 | . 1 4 2 Worker 1 | . . . 1 Recycler 1 | . . . 1 Mechanic 1 | . . 1 . Watcher 2 | . . 1 1 Swarmer 13 | . . 6 7 Grunt 16 | . 4 5 7 Sentry 9 | . . 3 6 Best Kill Streak 7 | . 2 3 7 Combat Bots Only 6 | . 2 3 6 Max Kills in Single Turn 3 | . 1 3 2 Gunslinging 1 | . . 1 1 Exploded 3 | . . 3 1 Melee . | . . . . Uniques/NPCs Destroyed . | . . . . Combat | -11 -10 -9 -9 -------- Run | Yrd Mat Mat Sto Hostile Shots Fired 345 | . 44 75 226 Missed 101 | . 17 14 70 Hits 244 | . 27 61 156 Projectile 244 | . 27 61 156 Critical Strikes 6 | . 1 . 5 Damage Taken 2622 | . 375 704 1543 Core 511 | . 110 104 297 Absorbed by Shields 97 | . . . 97 Core Remaining (%) 78 | 100 56 . . Volleys Fired 161 | . 25 46 90 Largest 3 | . 2 3 3 Hottest 123 | . 60 93 123 Shots Fired 326 | . 50 94 182 Gun 323 | . 50 93 180 Cannon . | . . . . Launcher 3 | . . 1 2 Special . | . . . . Kinetic 212 | . 39 90 83 Thermal 111 | . 11 3 97 Explosive 3 | . . 1 2 Electromagnetic . | . . . . Robot Hit Streak 12 | . 6 12 9 Robot Miss Streak 6 | . 3 3 6 Penetration Max . | . . . . Secondary Targets 5 | . . 1 4 Max Gunslinging Chain 1 | . . 1 1 Shots Hit Robots 168 | . 26 61 81 Core Hits 72 | . 9 27 36 Critical Kills . | . . . . Critical Parts Destroyed . | . . . . Critical Strikes 3 | . . . 3 Burn 3 | . . . 3 Melee Attacks . | . . . . Impact . | . . . . Slashing . | . . . . Piercing . | . . . . Sneak Attacks . | . . . . Combat Hostiles . | . . . . Follow-up Attacks . | . . . . Damage Inflicted 2194 | . 270 684 1240 Guns 2035 | . 270 576 1189 Cannons . | . . . . Explosions 137 | . . 108 29 Melee . | . . . . Ramming 22 | . . . 22 Kinetic 1349 | . 190 552 607 Thermal 686 | . 80 24 582 Explosive 137 | . . 108 29 Electromagnetic . | . . . . Impact . | . . . . Slashing . | . . . . Piercing . | . . . . Highest Corruption . | . . . . Average Corruption . | . . . . Corruption Purged . | . . . . Corruption Blocked . | . . . . Overload Shots . | . . . . Overflow Damage 2 | . . 2 . Projectiles . | . . . . Explosions 2 | . . 2 . Melee . | . . . . Knockbacks . | . . . . Impact . | . . . . Kinetic . | . . . . Secondary . | . . . . Self-Inflicted Damage 7 | . . . 7 Shots . | . . . . Rammed 7 | . 1 . 6 Targets Rammed 7 | . 1 . 6 Kicked . | . . . . Crushed . | . . . . Highest Temperature 504 | . 63 166 504 Average Temperature 119 | . 21 25 161 Received Heat Transfer 961 | . 210 288 463 Effects 15 | . . . 15 Shutdowns 6 | . . . 6 Energy Bleed 1 | . . . 1 Interference 3 | . . . 3 Matter Decay 2 | . . . 2 Short Circuit 2 | . . . 2 Damage (minor) 1 | . . . 1 Siege Activations . | . . . . Martial Activations . | . . . . Shielding Activations . | . . . . Robots Disrupted . | . . . . Combat Hostiles . | . . . . Robots Corrupted . | . . . . Combat Hostiles . | . . . . Parts Fried . | . . . . Impact Corruptions . | . . . . Robots Melted . | . . . . Combat Hostiles . | . . . . Parts Melted 6 | . . . 6 Heat Transferred 2175 | . 175 74 1926 Parts Sabotaged . | . . . . Parts Stolen . | . . . . Parts Stripped . | . . . . Power Chain Reactions . | . . . . Alert | -11 -10 -9 -9 ------- Run | Yrd Mat Mat Sto Maximum Alert Level . | . . . . Low Security (%) 100 | 100 100 100 100 Level 1 . | . . . . Level 2 . | . . . . Level 3 . | . . . . Level 4 . | . . . . Level 5 . | . . . . High Security . | . . . . Max Security . | . . . . Peak Influence 193 | . 45 193 136 Initial 40 | . . . 40 Average 52 | . 11 61 64 Influence Increases 1069 | . 115 413 541 Destroy 0b10 Robot/C 760 | . 80 280 400 Destroy 0b10 Robot/NC 25 | . . 10 15 Destroy Leader 194 | . 20 62 112 Successful Hack 4 | . . . 4 Disable Machine 45 | . . 45 . Destroy Structure 11 | . . 1 10 Lose Combat Pursuer 30 | . 15 15 . Influence Decreases 1031 | . 115 316 600 Entered New Map 57 | . . . 57 Time Decay 800 | . 115 296 389 Lost Part 174 | . . 20 154 Squads Dispatched 10 | . 1 2 7 Investigation 3 | . . . 3 Extermination . | . . . . Reinforcement 3 | . 1 2 . Assault . | . . . . Garrison 4 | . . . 4 Intercept . | . . . . Searches Triggered . | . . . . Construction Impeded . | . . . . Haulers Reinforced . | . . . . Active Scanning Responses . | . . . . Cargo Convoy Interrupts . | . . . . Stealth | -11 -10 -9 -9 --------- Run | Yrd Mat Mat Sto Distress Signals 2 | . . . 2 Communications Jammed . | . . . . Distress Signals . | . . . . Times Spotted 55 | . 5 20 30 Peak Tracking Total 5 | . 3 5 4 Tactical Retreats 2 | . 1 1 . Traps | -11 -10 -9 -9 ------- Run | Yrd Mat Mat Sto Traps Triggered 2 | . 1 . 1 Indirectly . | . . . . Trap Hack Attempts . | . . . . Triggered . | . . . . Disarmed . | . . . . Reprogrammed . | . . . . Reused . | . . . . Traps Extracted . | . . . . Installed . | . . . . Triggered . | . . . . Machines | -11 -10 -9 -9 ---------- Run | Yrd Mat Mat Sto Machines Disabled 3 | . . 3 . Max in Single Turn 1 | . . 1 . Machines Repaired . | . . . . Machines Dismantled . | . . . . Machines Sabotaged . | . . . . Overloaded Fab Kills . | . . . . Hacking | -11 -10 -9 -9 --------- Run | Yrd Mat Mat Sto Machines Accessed 6 | . . 3 3 Terminals 5 | . . 2 3 Fabricators . | . . . . Repair Stations . | . . . . Recycling Units . | . . . . Scanalyzers 1 | . . 1 . Garrison Access . | . . . . Total Hacks 18 | . . 9 9 Successful 9 | . . 3 6 Failed 9 | . . 6 3 Catastrophic . | . . . . Database Lockouts . | . . . . Manual 3 | . . . 3 Terminals 15 | . . 6 9 Fabricators . | . . . . Repair Stations . | . . . . Recycling Units . | . . . . Scanalyzers 3 | . . 3 . Garrison Access . | . . . . Terminal Hacks 9 | . . 3 6 Record 2 | . . 1 1 Open Door 1 | . . . 1 Emergency Access Points 1 | . . . 1 Alert Level 2 | . . 1 1 Dispatch Records 1 | . . 1 . Maintenance Status 1 | . . . 1 Zone Layout 1 | . . . 1 Fabricator Hacks . | . . . . Repair Station Hacks . | . . . . Recycling Unit Hacks . | . . . . Scanalyzer . | . . . . Garrison Access Hacks . | . . . . Unauthorized Hacks . | . . . . Terminals . | . . . . Fabricators . | . . . . Repair Stations . | . . . . Recycling Units . | . . . . Scanalyzers . | . . . . Garrison Access . | . . . . Data Cores Recovered . | . . . . Used . | . . . . Hacking Detections 6 | . . 2 4 Full Trace Events 3 | . . . 3 Feedback Events . | . . . . Feedback Blocked . | . . . . Robot Schematics Acquired . | . . . . Robots Built . | . . . . Authchips . | . . . . Time . | . . . . Total Robot Build Rating . | . . . . Part Schematics Acquired . | . . . . Parts Built . | . . . . Authchips . | . . . . Time . | . . . . Total Part Build Rating . | . . . . Parts Repaired . | . . . . Time . | . . . . Parts Recycled . | . . . . Recycled Matter . | . . . . Retrieved Matter . | . . . . Retrieved Components . | . . . . Parts Scanalyzed . | . . . . Part Schematics Acquired . | . . . . Parts Damaged . | . . . . Bothacking | -11 -10 -9 -9 ------------ Run | Yrd Mat Mat Sto Used RIF Installer . | . . . . Robots Hacked . | . . . . Non-combat . | . . . . Combat . | . . . . Robot Hacks Applied . | . . . . Relay Couplers Released . | . . . . Fabnet Peak Effective % . | . . . . Robots Rewired . | . . . . Allies Hacked . | . . . . Hacks Repelled . | . . . . Allies | -11 -10 -9 -9 -------- Run | Yrd Mat Mat Sto Total Allies . | . . . . Largest Group . | . . . . Highest-Rated Group . | . . . . Highest-Rated Ally . | . . . . Total Orders . | . . . . Ally Attacks . | . . . . Total Damage . | . . . . Kills . | . . . . Allies Corrupted . | . . . . Allies Melted . | . . . . Intel | -11 -10 -9 -9 ------- Run | Yrd Mat Mat Sto Active Infowar (turns) 1591 | . 186 1310 95 Sensors 1591 | . 186 1310 95 Robot Analysis Total . | . . . . Derelict Logs Recovered . | . . . . Drone Launches . | . . . . Drone Recoveries . | . . . . Exploration | -11 -10 -9 -9 ------------- Run | Yrd Mat Mat Sto Turns Passed 2767 | 121 387 1310 949 Spaces Moved 1159 | 64 178 574 343 Core 26 | 20 . . 6 Treads 463 | 44 178 76 165 Legs 593 | . . 498 95 Wheels . | . . . . Hover . | . . . . Flight 77 | . . . 77 Fastest Speed 40 | 50 160 120 40 Average Speed 183 | 152 160 187 195 Slowest Speed 360 | 160 160 260 360 Overloaded Moves . | . . . . Propulsion Burnouts . | . . . . Robots Hopped 2 | . . . 2 Potential Cave-ins . | . . . . Cave-ins Triggered . | . . . . Exploration Rate (%) 24 | 4 18 39 36 Regions Visited 3 Branch Regions 1 Pre-discovered Areas . | . . . . Known Exits Taken . | . . . . Unknown Exits Taken 3 | 1 1 1 . Scrap Searched . | . . . . Spaces Dug . | . . . . Terrain Destroyed 10 | . . 1 9 Melee . | . . . . Projectile . | . . . . AOE 10 | . . 1 9 Terrain Rammed . | . . . . Walls Destroyed . | . . . . Machines Disabled . | . . . . Actions | -11 -10 -9 -9 --------- Run | Yrd Mat Mat Sto Total 1540 | 90 236 740 474 Wait 95 | 1 13 73 8 Move 1152 | 63 177 573 339 Hop 2 | . . . 2 Pick Up 55 | 15 9 20 11 Fast Attach . | . . . . Attach 23 | 6 1 3 13 Detach . | . . . . Swap 17 | . 4 10 3 Drop 28 | 5 6 15 2 Fire 161 | . 25 46 90 Melee . | . . . . Ram 5 | . . . 5 Kick . | . . . . Crush 2 | . 1 . 1 Escape Stasis . | . . . . Rewire . | . . . . Trap . | . . . . Miscellaneous . | . . . . Route ------- -11/Scrapyard -10/Materials -9/Materials -9/Storage (discovered 1 exit: [Rec]) History --------- Turn | Location | Event 20 | -11/Scrapyard | Discovered new exit (range 16) 122 | -11/Scrapyard | Entered Materials 123 | -10/Materials | Met a group of wandering Federalists 366 | -10/Materials | Build established: Mutant 385 | -10/Materials | Discovered new exit (range 16) 509 | -10/Materials | Entered another Materials area 509 | -9/Materials | Evolved 2 slots: Power x1, Weapon x1 853 | -9/Materials | Build established: Skirmisher 1724 | -9/Materials | Discovered new exit (range 6) 1819 | -9/Materials | Entered Storage 1888 | -9/Storage | Garrison activated, responded to threat 2216 | -9/Storage | Discovered new exit (range 13) 2231 | -9/Storage | Build established: Tank 2473 | -9/Storage | Garrison activated, responded to threat 2504 | -9/Storage | Core integrity fell below 50% 2536 | -9/Storage | Lost 5 parts (2n3w) 2749 | -9/Storage | Core integrity fell below 20% 2768 | -9/Storage | Destroyed by G-34 Mercenary with Small Laser Last Messages --------------- K-01 Serf collects debris. Slammed into U-05 Engineer. K-01 Serf collects debris. R-06 Scavenger collects Aluminum Leg. K-01 Serf collects debris. G-34 Mercenary destroyed. Switching to secondary target: G-34 Mercenary. K-01 Serf collects debris. R-06 Scavenger collects Aluminum Leg. Autogun destroyed. K-01 Serf collects debris. Hrd. Light Armor Plating destroyed. R-06 Scavenger collects Aluminum Leg. K-01 Serf cleans the Terminal. K-01 Serf collects debris. Sml. Laser destroyed. K-01 Serf collects debris. Sml. Storage Unit destroyed. K-01 Serf collects debris. G-34 Mercenary destroyed. Map ----- +----------------------------------------------------+ | | | | | | | | | | | | | | | | | | | | | | | | | | | | | ??????????????????????????????????????????????? | | ?????????????????########???#####?????????????? | | ?????????????????#!!! !!#???# " #?????????????? | | ?????????????????#!! !!#???#"G"#?????????????? | | ?????????????????# !!#?###"!"####??????????? | | ?????????????????# #?# !%! #??????????? | | ?????????????????## ###?# """ #????? "##?? | | ?????????????????# T#??# """ #????? T# | | ?????????????????# ##??# """ # ??? "# | | ????????????????#####;##### # """ ?# "" | | ????????????????????# + """ # """ ?# "" | | ???????????#####????#g@#### """ # """ ??# "" | | ???????????# #????# #??# """ # """ ??# | | ???????????# < #????#=%#??# % #?"""???? | | ???????????# ##???#k!########/####? ???? | | ???????????#""""#???#*g ####+######+# | | ???????????## ##??? % | | ???#####???#T #???? % | | ??##"T"###### #???# | | ??# # ###? ### | | ??# % + #T### #?? | | ??# """"" # % + ? | | ??# """"" # ######+############# | | ??# """"" # """ =! # ???????????? | | ??# ! # "T" ! # """"" ?????????????# | | ??# ! = # # """"" +????????????? | | ??# + u # """"" ?????????????? | | ??####### ### + ?????????????? | | ????????###?## # """"" ?????????????? | | ?????????????# ###### ## """"" ?????????????? | | ?????????????# #????# ## """"" ?????????????? | | ?????????????# #????# ## ?????????????? | | ???????????###+###### #########??????????????? | | ???????????# # # ??????????????? | | ???????????# """"" # # ??????????????? | | ???????????# " " # # ??????????????? | +----------------------------------------------------+ Best States ------------- Heat Dissipation 39 Energy Generation 23 Energy Capacity 415 Matter Stores 300 Matter Capacity 300 Sight Range 16 Robot Scan Range 14 Terrain Scan Density 10 Armor Coverage 150 Evasion (%) 55 Recoil Reduction 2 Item Schematics ----------------- None Robot Schematics ------------------ None Fabricated ------------ Nothing Repaired ---------- Nothing Alien Tech Used ----------------- None Achievements -------------- None Challenges ------------ None Game ------ Seed NetworkDamperStorm Manual? 0 Play Time 00:44:32 Cumulative 4.0 hours Start 2025.07.13 @ 15:25:43 End 2025.07.13 @ 16:14:51 Sessions 1 Manual Loads 0 Difficulty Rogue Special Mode None Game No. 9 Rogue 9 Adventurer 0 Explorer 0 Win Type - Total 0 Types 0/0/0/0/0/0/0/0/0/0 Lore% 2 Gallery% 9 Achievement% 8 Wizard Run 0 Options --------- Layout 1 ASCII 0 Keyboard 0 Movement Numpad Keybinds 0 Fullscreen 1 Font 24/Smallcaps Map View 50x35 Zoom Use 0% Tactical HUD 0 Map Filters NONE Filters NONE Steam 1 RUN: 1403142b-6318-4cde-b898-22da7e6b6861